[Event "Titled Tuesday Blitz April 05 Early 2022"]
[White "Kouskoutis, Georgios-Alexandros"]
[Black "nobodyperfect13"]
[WhiteFideId "4234049"]
[WhiteElo "2130"]
[BlackElo "1938"]
[Result "1-0"]
[Round "05"]
[TimeControl "180+1"]
[Date "2022.04.05"]
[WhiteClock "0:00:06"]
[BlackClock "0:00:49"]

1. c4 {[%clk 0:03:00]}  c5 {[%clk 0:02:56]} 2. g3 {[%clk 0:02:54]}  g6 {[%clk 0:02:56]} 3. Bg2 {[%clk 0:02:55]}  Bg7 {[%clk 0:02:57]} 4. Nc3 {[%clk 0:02:56]}  Nc6 {[%clk 0:02:57]} 5. e4 {[%clk 0:02:56]}  d6 {[%clk 0:02:57]} 6. Nge2 {[%clk 0:02:57]}  e6 {[%clk 0:02:54]} 7. O-O {[%clk 0:02:57]}  Nge7 {[%clk 0:02:54]} 8. Rb1 {[%clk 0:02:54]}  O-O {[%clk 0:02:54]} 9. a3 {[%clk 0:02:54]}  a5 {[%clk 0:02:53]} 10. d3 {[%clk 0:02:54]}  Rb8 {[%clk 0:02:53]} 11. Be3 {[%clk 0:02:54]}  Nd4 {[%clk 0:02:52]} 12. b4 {[%clk 0:02:54]}  axb4 {[%clk 0:02:52]} 13. axb4 {[%clk 0:02:55]}  Bd7 {[%clk 0:02:42]} 14. bxc5 {[%clk 0:02:26]}  dxc5 {[%clk 0:02:41]} 15. Bxd4 {[%clk 0:01:20]}  cxd4 {[%clk 0:02:39]} 16. Nb5 {[%clk 0:01:21]}  Bc6 {[%clk 0:02:32]} 17. f4 {[%clk 0:01:16]}  Nc8 {[%clk 0:02:23]} 18. Qd2 {[%clk 0:01:12]}  Qe7 {[%clk 0:01:42]} 19. e5 {[%clk 0:00:58]}  Bxg2 {[%clk 0:01:37]} 20. Kxg2 {[%clk 0:00:59]}  b6 {[%clk 0:01:36]} 21. Nexd4 {[%clk 0:00:57]}  Na7 {[%clk 0:01:33]} 22. Qe3 {[%clk 0:00:47]}  Nxb5 {[%clk 0:01:31]} 23. Nxb5 {[%clk 0:00:41]}  Rfd8 {[%clk 0:01:31]} 24. Nd6 {[%clk 0:00:41]}  Qc7 {[%clk 0:01:27]} 25. Rb3 {[%clk 0:00:33]}  f6 {[%clk 0:01:21]} 26. Rfb1 {[%clk 0:00:10]}  fxe5 {[%clk 0:01:20]} 27. fxe5 {[%clk 0:00:11]}  Bxe5 {[%clk 0:01:18]} 28. Qxe5 {[%clk 0:00:09]}  Qxd6 {[%clk 0:01:17]} 29. Qxd6 {[%clk 0:00:09]}  Rxd6 {[%clk 0:01:17]} 30. c5 {[%clk 0:00:10]}  Rc6 {[%clk 0:01:15]} 31. Rxb6 {[%clk 0:00:07]}  Rbc8 {[%clk 0:01:14]} 32. Rxc6 {[%clk 0:00:06]}  Rxc6 {[%clk 0:01:14]} 33. Rc1 {[%clk 0:00:05]}  Kf7 {[%clk 0:01:12]} 34. Kf3 {[%clk 0:00:06]}  Ke7 {[%clk 0:01:10]} 35. Ke4 {[%clk 0:00:06]}  Kd7 {[%clk 0:01:11]} 36. d4 {[%clk 0:00:06]}  Kc7 {[%clk 0:01:11]} 37. Rf1 {[%clk 0:00:06]}  Ra6 {[%clk 0:01:09]} 38. Rf7+ {[%clk 0:00:06]}  Kc6 {[%clk 0:01:10]} 39. Rxh7 {[%clk 0:00:05]}  Ra2 {[%clk 0:01:10]} 40. Re7 {[%clk 0:00:05]}  Re2+ {[%clk 0:01:09]} 41. Kd3 {[%clk 0:00:05]}  Re1 {[%clk 0:01:07]} 42. h4 {[%clk 0:00:05]}  Kd5 {[%clk 0:00:59]} 43. Rd7+ {[%clk 0:00:05]}  Kc6 {[%clk 0:00:59]} 44. Rd6+ {[%clk 0:00:05]}  Kc7 {[%clk 0:01:00]} 45. g4 {[%clk 0:00:04]}  e5 {[%clk 0:00:59]} 46. dxe5 {[%clk 0:00:04]}  Rxe5 {[%clk 0:00:58]} 47. Rxg6 {[%clk 0:00:05]}  Rxc5 {[%clk 0:00:57]} 48. h5 {[%clk 0:00:05]}  Kd7 {[%clk 0:00:57]} 49. h6 {[%clk 0:00:06]}  Rc1 {[%clk 0:00:57]} 50. g5 {[%clk 0:00:04]}  Ke7 {[%clk 0:00:56]} 51. Rg7+ {[%clk 0:00:04]}  Kf8 {[%clk 0:00:57]} 52. Ra7 {[%clk 0:00:03]}  Kg8 {[%clk 0:00:55]} 53. g6 {[%clk 0:00:02]}  Rc8 {[%clk 0:00:54]} 54. Ke4 {[%clk 0:00:03]}  Re8+ {[%clk 0:00:52]} 55. Kf5 {[%clk 0:00:03]}  Rf8+ {[%clk 0:00:52]} 56. Kg5 {[%clk 0:00:04]}  Rb8 {[%clk 0:00:52]} 57. g7 {[%clk 0:00:02]}  Kh7 {[%clk 0:00:49]} 58. Rf7 {[%clk 0:00:02]}  Rb5+ {[%clk 0:00:49]} 59. Kf4 {[%clk 0:00:02]}  Rb4+ {[%clk 0:00:49]} 60. Kg5 {[%clk 0:00:02]}  Rb5+ {[%clk 0:00:49]} 61. Rf5 {[%clk 0:00:03]}  Rb1 {[%clk 0:00:47]} 62. Rf8 {[%clk 0:00:03]}  Rb5+ {[%clk 0:00:46]} 63. Kf4 {[%clk 0:00:03]}  Rb4+ {[%clk 0:00:46]} 64. Ke3 {[%clk 0:00:03]}  Rg4 {[%clk 0:00:46]} 65. Rh8+ {[%clk 0:00:03]}  Kg6 {[%clk 0:00:44]} 66. g8=Q+ {[%clk 0:00:04]}  Kf5 {[%clk 0:00:44]} 67. Qxg4+ {[%clk 0:00:04]}  Kxg4 {[%clk 0:00:45]} 68. Rg8+ {[%clk 0:00:04]}  Kf5 {[%clk 0:00:45]} 69. h7 {[%clk 0:00:05]}  Kf6 {[%clk 0:00:46]} 70. h8=Q+ {[%clk 0:00:06]}  Kf7 {[%clk 0:00:47]} 71. Qh7+ {[%clk 0:00:06]}  Ke6 {[%clk 0:00:48]} 72. Qe4+ {[%clk 0:00:06]}  Kf6 {[%clk 0:00:49]} 73. Rg6+ {[%clk 0:00:06]} 1-0


[Site "https://www.chess.com"]

[Event "Titled Tuesday Blitz April 05 Early 2022"]
[White "Lakshmi C"]
[Black "Prohorov, Olexandr"]
[WhiteFideId "25035347"]
[BlackFideId "14105578"]
[WhiteElo "1775"]
[BlackElo "1993"]
[Result "0-1"]
[Round "05"]
[TimeControl "180+1"]
[Date "2022.04.05"]
[WhiteClock "0:00:05"]
[BlackClock "0:00:04"]

1. e4 {[%clk 0:02:56]}  c5 {[%clk 0:02:59]} 2. c4 {[%clk 0:02:55]}  Nc6 {[%clk 0:02:56]} 3. Nc3 {[%clk 0:02:53]}  g6 {[%clk 0:02:55]} 4. Nf3 {[%clk 0:02:53]}  Bg7 {[%clk 0:02:55]} 5. Be2 {[%clk 0:02:54]}  e6 {[%clk 0:02:52]} 6. O-O {[%clk 0:02:53]}  Nge7 {[%clk 0:02:52]} 7. Rb1 {[%clk 0:02:48]}  O-O {[%clk 0:02:51]} 8. a3 {[%clk 0:02:48]}  a5 {[%clk 0:02:51]} 9. d3 {[%clk 0:02:45]}  d5 {[%clk 0:02:48]} 10. exd5 {[%clk 0:02:42]}  exd5 {[%clk 0:02:49]} 11. Bd2 {[%clk 0:02:39]}  Bf5 {[%clk 0:02:41]} 12. Nh4 {[%clk 0:02:31]}  Be6 {[%clk 0:02:34]} 13. Na4 {[%clk 0:02:18]}  b6 {[%clk 0:02:28]} 14. b3 {[%clk 0:02:05]}  Nd4 {[%clk 0:02:28]} 15. Be3 {[%clk 0:02:01]}  Nec6 {[%clk 0:02:12]} 16. Nf3 {[%clk 0:01:57]}  Nxe2+ {[%clk 0:02:09]} 17. Qxe2 {[%clk 0:01:57]}  Re8 {[%clk 0:02:01]} 18. Qd2 {[%clk 0:01:52]}  Bg4 {[%clk 0:01:42]} 19. Ng5 {[%clk 0:00:57]}  d4 {[%clk 0:01:21]} 20. Bf4 {[%clk 0:00:55]}  h6 {[%clk 0:01:19]} 21. Ne4 {[%clk 0:00:53]}  g5 {[%clk 0:01:18]} 22. Bg3 {[%clk 0:00:23]}  f5 {[%clk 0:01:15]} 23. Nd6 {[%clk 0:00:18]}  Rf8 {[%clk 0:01:09]} 24. f3 {[%clk 0:00:17]}  Bh5 {[%clk 0:01:07]} 25. Nb5 {[%clk 0:00:16]}  f4 {[%clk 0:01:00]} 26. Bf2 {[%clk 0:00:16]}  Bg6 {[%clk 0:00:51]} 27. Rfe1 {[%clk 0:00:15]}  Ne5 {[%clk 0:00:43]} 28. Re2 {[%clk 0:00:13]}  Nxd3 {[%clk 0:00:39]} 29. Re6 {[%clk 0:00:12]}  Bh7 {[%clk 0:00:34]} 30. Rd1 {[%clk 0:00:09]}  Rb8 {[%clk 0:00:23]} 31. Rd6 {[%clk 0:00:08]}  Qe7 {[%clk 0:00:18]} 32. Rc6 {[%clk 0:00:07]}  Ne5 {[%clk 0:00:14]} 33. Rc7 {[%clk 0:00:07]}  Qf6 {[%clk 0:00:10]} 34. Re1 {[%clk 0:00:07]}  Rfe8 {[%clk 0:00:08]} 35. Nb2 {[%clk 0:00:04]}  Kh8 {[%clk 0:00:06]} 36. Ra7 {[%clk 0:00:05]}  Rbd8 {[%clk 0:00:04]} 37. Rb7 {[%clk 0:00:04]}  g4 {[%clk 0:00:04]} 38. Na4 {[%clk 0:00:04]}  gxf3 {[%clk 0:00:04]} 39. Rxb6 {[%clk 0:00:04]}  Qg5 {[%clk 0:00:04]} 40. h4 {[%clk 0:00:05]}  Qxg2# {[%clk 0:00:04]} 0-1


[Site "https://www.chess.com"]

[Event "Titled Tuesday Blitz April 05 Early 2022"]
[White "Lauridsen, Jesper Morch"]
[Black "Coto Mederos, Michel"]
[WhiteFideId "1401890"]
[BlackFideId "3508528"]
[WhiteElo "2247"]
[BlackElo "2427"]
[Result "1-0"]
[Round "05"]
[TimeControl "180+1"]
[Date "2022.04.05"]
[WhiteClock "0:00:06"]
[BlackClock "0:00:03"]

1. e4 {[%clk 0:03:00]}  e5 {[%clk 0:02:58]} 2. Nf3 {[%clk 0:02:56]}  Nc6 {[%clk 0:02:58]} 3. Bc4 {[%clk 0:02:56]}  Bc5 {[%clk 0:02:57]} 4. c3 {[%clk 0:02:53]}  Nf6 {[%clk 0:02:57]} 5. d3 {[%clk 0:02:53]}  d6 {[%clk 0:02:56]} 6. Bg5 {[%clk 0:02:52]}  h6 {[%clk 0:02:52]} 7. Bh4 {[%clk 0:02:50]}  g5 {[%clk 0:02:49]} 8. Bg3 {[%clk 0:02:50]}  Bg4 {[%clk 0:02:46]} 9. Qb3 {[%clk 0:02:42]}  Qd7 {[%clk 0:02:36]} 10. Qxb7 {[%clk 0:02:25]}  Rb8 {[%clk 0:02:10]} 11. Qa6 {[%clk 0:02:24]}  Bxf3 {[%clk 0:01:34]} 12. gxf3 {[%clk 0:02:21]}  O-O {[%clk 0:01:24]} 13. Bb5 {[%clk 0:02:13]}  Rb6 {[%clk 0:01:23]} 14. Qa4 {[%clk 0:02:04]}  a6 {[%clk 0:00:52]} 15. Bxc6 {[%clk 0:01:59]}  Rxc6 {[%clk 0:00:49]} 16. Nd2 {[%clk 0:01:52]}  Rb8 {[%clk 0:00:46]} 17. b4 {[%clk 0:01:44]}  Ba7 {[%clk 0:00:45]} 18. Nc4 {[%clk 0:01:42]}  Kg7 {[%clk 0:00:25]} 19. Bxe5 {[%clk 0:01:33]}  Rb5 {[%clk 0:00:13]} 20. Bxf6+ {[%clk 0:01:24]}  Kxf6 {[%clk 0:00:14]} 21. Ne3 {[%clk 0:01:16]}  Kg7 {[%clk 0:00:12]} 22. Nf5+ {[%clk 0:01:06]}  Kh7 {[%clk 0:00:12]} 23. O-O {[%clk 0:00:58]}  Rxc3 {[%clk 0:00:11]} 24. Qxa6 {[%clk 0:00:50]}  Bb6 {[%clk 0:00:09]} 25. a4 {[%clk 0:00:43]}  Rxf5 {[%clk 0:00:08]} 26. exf5 {[%clk 0:00:42]}  Qxf5 {[%clk 0:00:09]} 27. Qb7 {[%clk 0:00:40]}  Rxd3 {[%clk 0:00:07]} 28. Qe4 {[%clk 0:00:39]}  Qxe4 {[%clk 0:00:06]} 29. fxe4 {[%clk 0:00:39]}  Rd4 {[%clk 0:00:06]} 30. a5 {[%clk 0:00:39]}  Ba7 {[%clk 0:00:06]} 31. b5 {[%clk 0:00:34]}  Rxe4 {[%clk 0:00:06]} 32. Rab1 {[%clk 0:00:32]}  Rg4+ {[%clk 0:00:05]} 33. Kh1 {[%clk 0:00:31]}  Ra4 {[%clk 0:00:05]} 34. b6 {[%clk 0:00:31]}  cxb6 {[%clk 0:00:06]} 35. axb6 {[%clk 0:00:31]}  Bb8 {[%clk 0:00:06]} 36. Rfc1 {[%clk 0:00:30]}  d5 {[%clk 0:00:07]} 37. Rc8 {[%clk 0:00:28]}  Bf4 {[%clk 0:00:07]} 38. b7 {[%clk 0:00:27]}  Ra2 {[%clk 0:00:07]} 39. Kg2 {[%clk 0:00:23]}  d4 {[%clk 0:00:03]} 40. Rd8 {[%clk 0:00:17]}  Rd2 {[%clk 0:00:02]} 41. b8=Q {[%clk 0:00:13]}  Bxb8 {[%clk 0:00:01]} 42. Rbxb8 {[%clk 0:00:13]}  d3 {[%clk 0:00:02]} 43. Rb3 {[%clk 0:00:12]}  Kg6 {[%clk 0:00:03]} 44. Rbxd3 {[%clk 0:00:12]}  Re2 {[%clk 0:00:04]} 45. Rd2 {[%clk 0:00:12]}  Re5 {[%clk 0:00:04]} 46. R8d6+ {[%clk 0:00:12]}  f6 {[%clk 0:00:04]} 47. R6d5 {[%clk 0:00:11]}  Re4 {[%clk 0:00:04]} 48. R5d4 {[%clk 0:00:11]}  Re5 {[%clk 0:00:05]} 49. Rd6 {[%clk 0:00:11]}  h5 {[%clk 0:00:04]} 50. Rc2 {[%clk 0:00:11]}  h4 {[%clk 0:00:05]} 51. Rcc6 {[%clk 0:00:11]}  Rf5 {[%clk 0:00:05]} 52. f3 {[%clk 0:00:12]}  Rf4 {[%clk 0:00:05]} 53. h3 {[%clk 0:00:12]}  Kg7 {[%clk 0:00:06]} 54. Rc7+ {[%clk 0:00:12]}  Kg6 {[%clk 0:00:06]} 55. Rdd7 {[%clk 0:00:12]}  Kf5 {[%clk 0:00:06]} 56. Rc5+ {[%clk 0:00:12]}  Kg6 {[%clk 0:00:07]} 57. Rd6 {[%clk 0:00:11]}  Ra4 {[%clk 0:00:06]} 58. Re6 {[%clk 0:00:11]}  Ra2+ {[%clk 0:00:06]} 59. Kf1 {[%clk 0:00:11]}  Ra4 {[%clk 0:00:04]} 60. Re4 {[%clk 0:00:10]}  Ra3 {[%clk 0:00:04]} 61. Kf2 {[%clk 0:00:10]}  Ra2+ {[%clk 0:00:04]} 62. Re2 {[%clk 0:00:10]}  Ra3 {[%clk 0:00:05]} 63. Rc6 {[%clk 0:00:10]}  Kf5 {[%clk 0:00:05]} 64. Ree6 {[%clk 0:00:09]}  Ra2+ {[%clk 0:00:05]} 65. Ke3 {[%clk 0:00:09]}  Ra3+ {[%clk 0:00:05]} 66. Kd4 {[%clk 0:00:08]}  Kf4 {[%clk 0:00:05]} 67. Rxf6+ {[%clk 0:00:08]}  Kg3 {[%clk 0:00:06]} 68. Rf5 {[%clk 0:00:07]}  Ra4+ {[%clk 0:00:05]} 69. Rc4 {[%clk 0:00:07]}  Ra3 {[%clk 0:00:04]} 70. Rxg5+ {[%clk 0:00:07]}  Kxh3 {[%clk 0:00:05]} 71. f4 {[%clk 0:00:06]}  Kh2 {[%clk 0:00:04]} 72. Rc2+ {[%clk 0:00:06]}  Kh1 {[%clk 0:00:03]} 73. Rc3 {[%clk 0:00:06]}  Ra4+ {[%clk 0:00:04]} 74. Kc5 {[%clk 0:00:06]}  Rxf4 {[%clk 0:00:03]} 75. Rh3# {[%clk 0:00:06]} 1-0


[Site "https://www.chess.com"]

[Event "Titled Tuesday Blitz April 05 Early 2022"]
[White "Marcziter, Dmitrii"]
[Black "Postnikov, Daniil"]
[WhiteFideId "13900765"]
[BlackFideId "4166329"]
[WhiteElo "2155"]
[BlackElo "2261"]
[Result "1-0"]
[Round "05"]
[TimeControl "180+1"]
[Date "2022.04.05"]
[WhiteClock "0:00:44"]
[BlackClock "0:00:06"]

1. d4 {[%clk 0:03:00]}  Nf6 {[%clk 0:03:00]} 2. c4 {[%clk 0:03:00]}  g6 {[%clk 0:03:00]} 3. Nf3 {[%clk 0:03:00]}  Bg7 {[%clk 0:03:00]} 4. g3 {[%clk 0:03:00]}  O-O {[%clk 0:03:00]} 5. Bg2 {[%clk 0:03:00]}  d6 {[%clk 0:03:00]} 6. Nc3 {[%clk 0:03:00]}  c6 {[%clk 0:03:01]} 7. O-O {[%clk 0:02:59]}  Bf5 {[%clk 0:03:01]} 8. Ne1 {[%clk 0:02:57]}  Qb6 {[%clk 0:02:16]} 9. e4 {[%clk 0:02:54]}  Bg4 {[%clk 0:02:15]} 10. f3 {[%clk 0:02:53]}  Be6 {[%clk 0:02:14]} 11. b3 {[%clk 0:02:45]}  c5 {[%clk 0:02:07]} 12. d5 {[%clk 0:02:39]}  Bc8 {[%clk 0:02:01]} 13. Bb2 {[%clk 0:02:39]}  Nbd7 {[%clk 0:02:01]} 14. Nd3 {[%clk 0:02:36]}  e5 {[%clk 0:01:56]} 15. dxe6 {[%clk 0:02:33]}  fxe6 {[%clk 0:01:55]} 16. Qe2 {[%clk 0:02:27]}  Nh5 {[%clk 0:01:40]} 17. Na4 {[%clk 0:02:20]}  Qd8 {[%clk 0:01:34]} 18. Bxg7 {[%clk 0:02:19]}  Kxg7 {[%clk 0:01:35]} 19. f4 {[%clk 0:02:18]}  Qf6 {[%clk 0:01:26]} 20. Rad1 {[%clk 0:02:03]}  Nb6 {[%clk 0:01:19]} 21. e5 {[%clk 0:01:53]}  dxe5 {[%clk 0:00:42]} 22. fxe5 {[%clk 0:01:53]}  Qe7 {[%clk 0:00:42]} 23. Rxf8 {[%clk 0:01:51]}  Qxf8 {[%clk 0:00:43]} 24. Naxc5 {[%clk 0:01:46]}  Qe7 {[%clk 0:00:39]} 25. Ne4 {[%clk 0:01:35]}  Kg8 {[%clk 0:00:38]} 26. Rf1 {[%clk 0:01:30]}  Nd7 {[%clk 0:00:38]} 27. g4 {[%clk 0:01:26]}  Ng7 {[%clk 0:00:38]} 28. Nf6+ {[%clk 0:01:24]}  Kh8 {[%clk 0:00:38]} 29. Qe3 {[%clk 0:01:19]}  Ne8 {[%clk 0:00:37]} 30. g5 {[%clk 0:01:11]}  Ng7 {[%clk 0:00:30]} 31. Be4 {[%clk 0:01:01]}  Nf5 {[%clk 0:00:26]} 32. Bxf5 {[%clk 0:01:00]}  exf5 {[%clk 0:00:27]} 33. Qd4 {[%clk 0:00:57]}  Nf8 {[%clk 0:00:23]} 34. Qd6 {[%clk 0:00:49]}  Qxd6 {[%clk 0:00:12]} 35. exd6 {[%clk 0:00:49]}  Ne6 {[%clk 0:00:11]} 36. d7 {[%clk 0:00:47]}  Bxd7 {[%clk 0:00:11]} 37. Nxd7 {[%clk 0:00:47]}  Rd8 {[%clk 0:00:12]} 38. N3e5 {[%clk 0:00:46]}  Nxg5 {[%clk 0:00:12]} 39. h4 {[%clk 0:00:45]}  Nh3+ {[%clk 0:00:06]} 40. Kh2 {[%clk 0:00:44]} 1-0


[Site "https://www.chess.com"]

[Event "Titled Tuesday Blitz April 05 Early 2022"]
[White "Martinez, Shawn"]
[Black "Tuleyeva-Aketayeva, Dana"]
[WhiteFideId "2039770"]
[BlackFideId "13701932"]
[WhiteElo "2174"]
[BlackElo "1875"]
[Result "1-0"]
[Round "05"]
[TimeControl "180+1"]
[Date "2022.04.05"]
[WhiteClock "0:00:41"]
[BlackClock "0:00:04"]

1. e4 {[%clk 0:03:00]}  c5 {[%clk 0:02:59]} 2. Nc3 {[%clk 0:02:59]}  Nc6 {[%clk 0:02:58]} 3. Bb5 {[%clk 0:02:59]}  g6 {[%clk 0:02:57]} 4. Bxc6 {[%clk 0:02:55]}  dxc6 {[%clk 0:02:58]} 5. f4 {[%clk 0:02:55]}  Bg7 {[%clk 0:02:58]} 6. d3 {[%clk 0:02:55]}  Nf6 {[%clk 0:02:58]} 7. Nf3 {[%clk 0:02:55]}  O-O {[%clk 0:02:58]} 8. O-O {[%clk 0:02:55]}  Nd7 {[%clk 0:02:58]} 9. Qe1 {[%clk 0:02:44]}  Nb6 {[%clk 0:02:51]} 10. h3 {[%clk 0:02:22]}  c4 {[%clk 0:02:26]} 11. Qe2 {[%clk 0:02:09]}  cxd3 {[%clk 0:02:23]} 12. cxd3 {[%clk 0:02:09]}  c5 {[%clk 0:02:09]} 13. Kh1 {[%clk 0:02:01]}  Be6 {[%clk 0:01:36]} 14. Be3 {[%clk 0:01:55]}  Bd4 {[%clk 0:01:19]} 15. f5 {[%clk 0:01:38]}  gxf5 {[%clk 0:00:34]} 16. exf5 {[%clk 0:01:23]}  Bxf5 {[%clk 0:00:31]} 17. Nxd4 {[%clk 0:01:17]}  cxd4 {[%clk 0:00:30]} 18. Bh6 {[%clk 0:01:13]}  Bg6 {[%clk 0:00:26]} 19. Ne4 {[%clk 0:00:58]}  Nd5 {[%clk 0:00:18]} 20. Rf3 {[%clk 0:00:53]}  Rc8 {[%clk 0:00:13]} 21. Raf1 {[%clk 0:00:49]}  Qc7 {[%clk 0:00:08]} 22. Bxf8 {[%clk 0:00:42]}  Kxf8 {[%clk 0:00:04]} 23. Ng5 {[%clk 0:00:41]} 1-0


[Site "https://www.chess.com"]

[Event "Titled Tuesday Blitz April 05 Early 2022"]
[White "Melikhov, Evgeny V."]
[Black "Mickiewicz, Piotr"]
[WhiteFideId "4122046"]
[BlackFideId "1114891"]
[WhiteElo "1931"]
[BlackElo "2266"]
[Result "1-0"]
[Round "05"]
[TimeControl "180+1"]
[Date "2022.04.05"]
[WhiteClock "0:00:10"]
[BlackClock "0:00:12"]

1. d4 {[%clk 0:02:42]}  e6 {[%clk 0:02:58]} 2. c4 {[%clk 0:02:42]}  Nf6 {[%clk 0:02:58]} 3. Nc3 {[%clk 0:02:42]}  d5 {[%clk 0:02:58]} 4. cxd5 {[%clk 0:02:42]}  exd5 {[%clk 0:02:59]} 5. Bg5 {[%clk 0:02:42]}  c6 {[%clk 0:02:58]} 6. Qc2 {[%clk 0:02:41]}  Na6 {[%clk 0:02:57]} 7. a3 {[%clk 0:02:37]}  g6 {[%clk 0:02:54]} 8. e3 {[%clk 0:02:36]}  Bf5 {[%clk 0:02:52]} 9. Bd3 {[%clk 0:02:36]}  Bxd3 {[%clk 0:02:50]} 10. Qxd3 {[%clk 0:02:36]}  Be7 {[%clk 0:02:49]} 11. Nf3 {[%clk 0:02:36]}  O-O {[%clk 0:02:48]} 12. O-O {[%clk 0:02:36]}  Nc7 {[%clk 0:02:45]} 13. Rfc1 {[%clk 0:02:30]}  Ne4 {[%clk 0:02:32]} 14. Bxe7 {[%clk 0:02:22]}  Qxe7 {[%clk 0:02:31]} 15. Qc2 {[%clk 0:02:19]}  Nd6 {[%clk 0:02:27]} 16. Na4 {[%clk 0:02:13]}  Ne6 {[%clk 0:02:23]} 17. Nc5 {[%clk 0:02:12]}  Ng5 {[%clk 0:02:19]} 18. Nxg5 {[%clk 0:02:02]}  Qxg5 {[%clk 0:02:20]} 19. Qe2 {[%clk 0:01:56]}  h5 {[%clk 0:02:14]} 20. Qf3 {[%clk 0:01:56]}  Rfe8 {[%clk 0:02:11]} 21. Qg3 {[%clk 0:01:41]}  Qe7 {[%clk 0:02:06]} 22. Re1 {[%clk 0:01:33]}  Rac8 {[%clk 0:01:59]} 23. Rac1 {[%clk 0:01:32]}  Rc7 {[%clk 0:01:58]} 24. h4 {[%clk 0:01:24]}  Nf5 {[%clk 0:01:56]} 25. Qg5 {[%clk 0:01:22]}  Nxh4 {[%clk 0:01:54]} 26. Qxe7 {[%clk 0:01:21]}  Rcxe7 {[%clk 0:01:55]} 27. b4 {[%clk 0:01:19]}  a6 {[%clk 0:01:52]} 28. a4 {[%clk 0:01:19]}  Nf5 {[%clk 0:01:52]} 29. b5 {[%clk 0:01:18]}  cxb5 {[%clk 0:01:50]} 30. axb5 {[%clk 0:01:18]}  axb5 {[%clk 0:01:49]} 31. Red1 {[%clk 0:01:12]}  Rc7 {[%clk 0:01:44]} 32. Rb1 {[%clk 0:01:12]}  Nd6 {[%clk 0:01:42]} 33. Ra1 {[%clk 0:01:05]}  Rec8 {[%clk 0:01:38]} 34. Nd3 {[%clk 0:00:55]}  Ne4 {[%clk 0:01:30]} 35. Rdb1 {[%clk 0:00:44]}  Nc3 {[%clk 0:01:28]} 36. Rb2 {[%clk 0:00:43]}  b6 {[%clk 0:01:20]} 37. Ra6 {[%clk 0:00:40]}  g5 {[%clk 0:01:17]} 38. Rb3 {[%clk 0:00:29]}  Rc6 {[%clk 0:01:14]} 39. Ne5 {[%clk 0:00:25]}  Rd6 {[%clk 0:01:10]} 40. Ra7 {[%clk 0:00:23]}  f6 {[%clk 0:00:43]} 41. Ng6 {[%clk 0:00:22]}  Rc4 {[%clk 0:00:42]} 42. Rba3 {[%clk 0:00:19]}  Na4 {[%clk 0:00:19]} 43. Ne7+ {[%clk 0:00:18]}  Kf8 {[%clk 0:00:18]} 44. Nf5 {[%clk 0:00:18]}  Rd8 {[%clk 0:00:17]} 45. Ng7 {[%clk 0:00:16]}  Rc6 {[%clk 0:00:15]} 46. Kh2 {[%clk 0:00:12]}  Rdc8 {[%clk 0:00:14]} 47. e4 {[%clk 0:00:09]}  dxe4 {[%clk 0:00:13]} 48. Re3 {[%clk 0:00:10]}  R6c7 {[%clk 0:00:11]} 49. Ne6+ {[%clk 0:00:09]}  Ke7 {[%clk 0:00:10]} 50. Nxc7 {[%clk 0:00:10]}  Kd6 {[%clk 0:00:10]} 51. Nxb5+ {[%clk 0:00:09]}  Kd5 {[%clk 0:00:11]} 52. Rxa4 {[%clk 0:00:07]}  f5 {[%clk 0:00:09]} 53. g3 {[%clk 0:00:07]}  f4 {[%clk 0:00:08]} 54. gxf4 {[%clk 0:00:07]}  gxf4 {[%clk 0:00:09]} 55. Rc3 {[%clk 0:00:07]}  Rg8 {[%clk 0:00:08]} 56. Nc7+ {[%clk 0:00:07]}  Kd6 {[%clk 0:00:08]} 57. Rb4 {[%clk 0:00:07]}  Ke7 {[%clk 0:00:08]} 58. Rxb6 {[%clk 0:00:07]}  f3 {[%clk 0:00:09]} 59. Nd5+ {[%clk 0:00:06]}  Kd8 {[%clk 0:00:08]} 60. Rb8+ {[%clk 0:00:06]}  Kd7 {[%clk 0:00:09]} 61. Rxg8 {[%clk 0:00:06]}  e3 {[%clk 0:00:10]} 62. Nxe3 {[%clk 0:00:05]}  Kd6 {[%clk 0:00:11]} 63. Kg3 {[%clk 0:00:05]}  h4+ {[%clk 0:00:11]} 64. Kxf3 {[%clk 0:00:06]}  Ke6 {[%clk 0:00:11]} 65. Rh8 {[%clk 0:00:07]}  Kf7 {[%clk 0:00:11]} 66. Rxh4 {[%clk 0:00:08]}  Kg6 {[%clk 0:00:12]} 67. Re4 {[%clk 0:00:08]}  Kg5 {[%clk 0:00:13]} 68. Rc5+ {[%clk 0:00:08]}  Kf6 {[%clk 0:00:14]} 69. d5 {[%clk 0:00:09]}  Kf7 {[%clk 0:00:13]} 70. Re6 {[%clk 0:00:10]}  Kg7 {[%clk 0:00:13]} 71. Rc7+ {[%clk 0:00:11]}  Kf8 {[%clk 0:00:12]} 72. Ra6 {[%clk 0:00:10]} 1-0


[Site "https://www.chess.com"]

[Event "Titled Tuesday Blitz April 05 Early 2022"]
[White "Mikhnenko, Alexander"]
[Black "Onslow, Alfie"]
[WhiteFideId "34143014"]
[BlackFideId "436976"]
[WhiteElo "2117"]
[BlackElo "1884"]
[Result "1-0"]
[Round "05"]
[TimeControl "180+1"]
[Date "2022.04.05"]
[WhiteClock "0:01:08"]
[BlackClock "0:00:02"]

1. e4 {[%clk 0:03:00]}  c5 {[%clk 0:02:56]} 2. Nf3 {[%clk 0:03:00]}  Nc6 {[%clk 0:02:55]} 3. d4 {[%clk 0:02:59]}  cxd4 {[%clk 0:02:55]} 4. Nxd4 {[%clk 0:02:59]}  e5 {[%clk 0:02:55]} 5. Nb5 {[%clk 0:02:57]}  d6 {[%clk 0:02:55]} 6. N1c3 {[%clk 0:02:57]}  a6 {[%clk 0:02:54]} 7. Na3 {[%clk 0:02:58]}  b5 {[%clk 0:02:54]} 8. Nd5 {[%clk 0:02:58]}  Nge7 {[%clk 0:02:55]} 9. Bg5 {[%clk 0:02:58]}  Qa5+ {[%clk 0:02:42]} 10. Bd2 {[%clk 0:02:57]}  Qd8 {[%clk 0:02:36]} 11. Bg5 {[%clk 0:02:51]}  Be6 {[%clk 0:02:25]} 12. c3 {[%clk 0:02:43]}  h6 {[%clk 0:02:10]} 13. Bh4 {[%clk 0:02:40]}  Bxd5 {[%clk 0:02:03]} 14. exd5 {[%clk 0:02:39]}  Na5 {[%clk 0:02:00]} 15. Nc2 {[%clk 0:02:33]}  g5 {[%clk 0:01:57]} 16. Bg3 {[%clk 0:02:30]}  Bg7 {[%clk 0:01:52]} 17. h4 {[%clk 0:02:28]}  Nf5 {[%clk 0:01:25]} 18. Bd3 {[%clk 0:02:17]}  Nxg3 {[%clk 0:01:22]} 19. fxg3 {[%clk 0:02:18]}  Nc4 {[%clk 0:01:09]} 20. O-O {[%clk 0:02:11]}  Nxb2 {[%clk 0:00:26]} 21. Qh5 {[%clk 0:02:05]}  Ra7 {[%clk 0:00:16]} 22. Bf5 {[%clk 0:01:45]}  Nc4 {[%clk 0:00:11]} 23. Be6 {[%clk 0:01:39]}  O-O {[%clk 0:00:11]} 24. Bf5 {[%clk 0:01:34]}  gxh4 {[%clk 0:00:05]} 25. gxh4 {[%clk 0:01:35]}  Kh8 {[%clk 0:00:05]} 26. Be4 {[%clk 0:01:29]}  Qd7 {[%clk 0:00:03]} 27. Rf6 {[%clk 0:01:17]}  Rg8 {[%clk 0:00:01]} 28. Rxh6+ {[%clk 0:01:07]}  Bxh6 {[%clk 0:00:02]} 29. Qxh6# {[%clk 0:01:08]} 1-0


[Site "https://www.chess.com"]